[Event "Titled Tuesday Blitz March 21 Early 2023"]
[White "Mazurkiewicz, Michal"]
[Black "ritanovikova"]
[WhiteFideId "1124943"]
[WhiteElo "2054"]
[BlackElo "2213"]
[Result "1-0"]
[Round "03"]
[TimeControl "180+2"]
[Date "2023.03.21"]
[WhiteClock "0:01:50"]
[BlackClock "0:02:00"]

1. e4 {[%clk 0:03:00]}  d5 {[%clk 0:02:59]} 2. exd5 {[%clk 0:02:45]}  Qxd5 {[%clk 0:03:00]} 3. d3 {[%clk 0:02:42]}  e5 {[%clk 0:02:59]} 4. Nc3 {[%clk 0:02:41]}  Qd8 {[%clk 0:02:59]} 5. g3 {[%clk 0:02:41]}  Nf6 {[%clk 0:02:59]} 6. Nf3 {[%clk 0:02:41]}  Nc6 {[%clk 0:02:58]} 7. Bg2 {[%clk 0:02:41]}  Bg4 {[%clk 0:02:57]} 8. h3 {[%clk 0:02:42]}  Bh5 {[%clk 0:02:56]} 9. O-O {[%clk 0:02:43]}  Bd6 {[%clk 0:02:54]} 10. Re1 {[%clk 0:02:43]}  O-O {[%clk 0:02:54]} 11. g4 {[%clk 0:02:41]}  Bg6 {[%clk 0:02:53]} 12. Bd2 {[%clk 0:02:37]}  Qd7 {[%clk 0:02:53]} 13. Nh4 {[%clk 0:02:29]}  Rab8 {[%clk 0:02:44]} 14. Nxg6 {[%clk 0:02:23]}  hxg6 {[%clk 0:02:44]} 15. Ne4 {[%clk 0:02:24]}  Nxe4 {[%clk 0:02:43]} 16. Bxe4 {[%clk 0:02:25]}  f5 {[%clk 0:02:37]} 17. gxf5 {[%clk 0:02:25]}  gxf5 {[%clk 0:02:35]} 18. Bd5+ {[%clk 0:02:26]}  Rf7 {[%clk 0:02:26]} 19. c3 {[%clk 0:02:22]}  g6 {[%clk 0:02:25]} 20. Qf3 {[%clk 0:02:21]}  Kg7 {[%clk 0:02:21]} 21. Bxf7 {[%clk 0:02:19]}  Qxf7 {[%clk 0:02:22]} 22. b4 {[%clk 0:02:04]}  a6 {[%clk 0:02:19]} 23. a4 {[%clk 0:02:04]}  Nd8 {[%clk 0:02:11]} 24. Qe3 {[%clk 0:01:54]}  f4 {[%clk 0:02:06]} 25. Qf3 {[%clk 0:01:52]}  Ne6 {[%clk 0:02:04]} 26. Qg4 {[%clk 0:01:52]}  Rh8 {[%clk 0:02:01]} 27. d4 {[%clk 0:01:52]}  Rh4 {[%clk 0:02:00]} 28. Qxh4 {[%clk 0:01:50]} 1-0


[Site "https://www.chess.com"]

[Event "Titled Tuesday Blitz March 21 Early 2023"]
[White "Ciuffoletti, Paolo"]
[Black "Ratsma, Midas"]
[WhiteFideId "807630"]
[BlackFideId "1032283"]
[WhiteElo "2143"]
[BlackElo "2172"]
[Result "0-1"]
[Round "03"]
[TimeControl "180+2"]
[Date "2023.03.21"]
[WhiteClock "0:00:05"]
[BlackClock "0:01:40"]

1. e4 {[%clk 0:03:00]}  e5 {[%clk 0:02:59]} 2. Nf3 {[%clk 0:02:58]}  Nc6 {[%clk 0:02:58]} 3. Bc4 {[%clk 0:02:58]}  Nf6 {[%clk 0:02:58]} 4. d4 {[%clk 0:02:57]}  exd4 {[%clk 0:02:58]} 5. Ng5 {[%clk 0:02:57]}  d5 {[%clk 0:02:50]} 6. exd5 {[%clk 0:02:57]}  Qe7+ {[%clk 0:02:50]} 7. Kf1 {[%clk 0:02:56]}  Ne5 {[%clk 0:02:49]} 8. Qxd4 {[%clk 0:02:53]}  h6 {[%clk 0:02:36]} 9. Ne4 {[%clk 0:02:40]}  Nxc4 {[%clk 0:02:27]} 10. Nxf6+ {[%clk 0:02:37]}  Qxf6 {[%clk 0:02:26]} 11. Qxc4 {[%clk 0:02:37]}  Bd6 {[%clk 0:02:25]} 12. Nc3 {[%clk 0:02:24]}  O-O {[%clk 0:02:22]} 13. Ne4 {[%clk 0:01:42]}  Qg6 {[%clk 0:02:22]} 14. Nxd6 {[%clk 0:01:37]}  cxd6 {[%clk 0:02:23]} 15. f3 {[%clk 0:01:15]}  Bf5 {[%clk 0:02:21]} 16. Kf2 {[%clk 0:01:07]}  Rac8 {[%clk 0:02:19]} 17. Qd4 {[%clk 0:01:03]}  Rxc2+ {[%clk 0:02:18]} 18. Bd2 {[%clk 0:01:01]}  Rfc8 {[%clk 0:02:12]} 19. Rhd1 {[%clk 0:00:51]}  R8c4 {[%clk 0:02:10]} 20. Qe3 {[%clk 0:00:46]}  Rxb2 {[%clk 0:02:09]} 21. Rac1 {[%clk 0:00:38]}  Rh4 {[%clk 0:02:04]} 22. Kg1 {[%clk 0:00:35]}  Qh5 {[%clk 0:01:51]} 23. Qc3 {[%clk 0:00:17]}  Rxa2 {[%clk 0:01:46]} 24. h3 {[%clk 0:00:05]}  Bxh3 {[%clk 0:01:40]} 0-1


[Site "https://www.chess.com"]

[Event "Titled Tuesday Blitz March 21 Early 2023"]
[White "Sanchez, Robert"]
[Black "Begunov, Konstantin"]
[WhiteFideId "2034360"]
[BlackFideId "4118510"]
[WhiteElo "2182"]
[BlackElo "2079"]
[Result "0-1"]
[Round "03"]
[TimeControl "180+2"]
[Date "2023.03.21"]
[WhiteClock "0:02:02"]
[BlackClock "0:02:03"]

1. e4 {[%clk 0:03:00]}  c5 {[%clk 0:02:57]} 2. Nf3 {[%clk 0:03:00]}  d6 {[%clk 0:02:57]} 3. d4 {[%clk 0:03:01]}  cxd4 {[%clk 0:02:58]} 4. Nxd4 {[%clk 0:03:01]}  Nf6 {[%clk 0:02:58]} 5. Nc3 {[%clk 0:03:02]}  a6 {[%clk 0:02:59]} 6. Be3 {[%clk 0:03:02]}  Ng4 {[%clk 0:02:58]} 7. Bc1 {[%clk 0:03:02]}  Nc6 {[%clk 0:02:58]} 8. Be2 {[%clk 0:02:57]}  Qb6 {[%clk 0:02:57]} 9. Bxg4 {[%clk 0:02:53]}  Qxd4 {[%clk 0:02:57]} 10. Qe2 {[%clk 0:02:48]}  Bxg4 {[%clk 0:02:51]} 11. Qxg4 {[%clk 0:02:48]}  Ne5 {[%clk 0:02:26]} 12. Qe2 {[%clk 0:02:46]}  Rc8 {[%clk 0:02:25]} 13. O-O {[%clk 0:02:44]}  e6 {[%clk 0:02:24]} 14. Be3 {[%clk 0:02:41]}  Qc4 {[%clk 0:02:24]} 15. Qd1 {[%clk 0:02:39]}  Qc6 {[%clk 0:02:15]} 16. f4 {[%clk 0:02:06]}  Nc4 {[%clk 0:02:14]} 17. Bc1 {[%clk 0:02:07]}  Nxb2 {[%clk 0:02:02]} 18. Bxb2 {[%clk 0:02:03]}  Qb6+ {[%clk 0:02:02]} 19. Kh1 {[%clk 0:02:02]}  Qxb2 {[%clk 0:02:03]} 0-1


[Site "https://www.chess.com"]

[Event "Titled Tuesday Blitz March 21 Early 2023"]
[White "Hernandez Bonilla, Amelia"]
[Black "rikchessmx"]
[WhiteFideId "3900193"]
[WhiteElo "2182"]
[BlackElo "2413"]
[Result "1-0"]
[Round "03"]
[TimeControl "180+2"]
[Date "2023.03.21"]
[WhiteClock "0:02:08"]
[BlackClock "0:02:08"]

1. d4 {[%clk 0:02:49]}  Nf6 {[%clk 0:02:58]} 2. Bf4 {[%clk 0:02:48]}  h5 {[%clk 0:02:56]} 3. Nf3 {[%clk 0:02:45]}  Nd5 {[%clk 0:02:56]} 4. Bc1 {[%clk 0:02:43]}  b5 {[%clk 0:02:51]} 5. e4 {[%clk 0:02:42]}  Nf6 {[%clk 0:02:51]} 6. Bd3 {[%clk 0:02:42]}  a6 {[%clk 0:02:50]} 7. Nbd2 {[%clk 0:02:42]}  Bb7 {[%clk 0:02:49]} 8. O-O {[%clk 0:02:41]}  d6 {[%clk 0:02:49]} 9. Qe2 {[%clk 0:02:38]}  Nbd7 {[%clk 0:02:48]} 10. e5 {[%clk 0:02:37]}  Nd5 {[%clk 0:02:48]} 11. Ne4 {[%clk 0:02:28]}  Nb4 {[%clk 0:02:47]} 12. e6 {[%clk 0:02:22]}  Nf6 {[%clk 0:02:30]} 13. exf7+ {[%clk 0:02:20]}  Kxf7 {[%clk 0:02:30]} 14. Neg5+ {[%clk 0:02:20]}  Kg8 {[%clk 0:02:25]} 15. Bg6 {[%clk 0:02:16]}  Rh6 {[%clk 0:02:25]} 16. Qe6+ {[%clk 0:02:14]}  Kh8 {[%clk 0:02:14]} 17. Nf7+ {[%clk 0:02:14]}  Kg8 {[%clk 0:02:12]} 18. Nxd8+ {[%clk 0:02:13]}  Kh8 {[%clk 0:02:11]} 19. Nf7+ {[%clk 0:02:11]}  Kg8 {[%clk 0:02:11]} 20. Nxh6+ {[%clk 0:02:11]}  Kh8 {[%clk 0:02:10]} 21. Qg8+ {[%clk 0:02:08]}  Nxg8 {[%clk 0:02:08]} 22. Nf7# {[%clk 0:02:08]} 1-0


[Site "https://www.chess.com"]

[Event "Titled Tuesday Blitz March 21 Early 2023"]
[White "Hoffmann, Asa"]
[Black "salgadoLO"]
[WhiteFideId "2001470"]
[WhiteElo "2117"]
[BlackElo "2176"]
[Result "1-0"]
[Round "03"]
[TimeControl "180+2"]
[Date "2023.03.21"]
[WhiteClock "0:00:42"]
[BlackClock "0:00:36"]

1. d4 {[%clk 0:02:56]}  d5 {[%clk 0:02:58]} 2. Bg5 {[%clk 0:02:55]}  h6 {[%clk 0:02:52]} 3. Bh4 {[%clk 0:02:54]}  c6 {[%clk 0:02:52]} 4. e3 {[%clk 0:02:54]}  Bf5 {[%clk 0:02:52]} 5. Bd3 {[%clk 0:02:54]}  Bxd3 {[%clk 0:02:51]} 6. Qxd3 {[%clk 0:02:54]}  Nd7 {[%clk 0:02:51]} 7. Nd2 {[%clk 0:02:53]}  Ngf6 {[%clk 0:02:51]} 8. f4 {[%clk 0:02:52]}  e6 {[%clk 0:02:51]} 9. Ngf3 {[%clk 0:02:51]}  Be7 {[%clk 0:02:47]} 10. O-O {[%clk 0:02:51]}  O-O {[%clk 0:02:45]} 11. Ne5 {[%clk 0:02:50]}  Nxe5 {[%clk 0:02:40]} 12. fxe5 {[%clk 0:02:49]}  Nd7 {[%clk 0:02:39]} 13. Bg3 {[%clk 0:02:48]}  c5 {[%clk 0:02:35]} 14. c3 {[%clk 0:02:47]}  Rc8 {[%clk 0:02:35]} 15. Nf3 {[%clk 0:02:41]}  c4 {[%clk 0:02:29]} 16. Qe2 {[%clk 0:02:40]}  b5 {[%clk 0:02:23]} 17. e4 {[%clk 0:02:38]}  Nb6 {[%clk 0:02:22]} 18. a3 {[%clk 0:02:37]}  a5 {[%clk 0:02:22]} 19. Rf2 {[%clk 0:02:35]}  Rb8 {[%clk 0:02:11]} 20. Raf1 {[%clk 0:02:33]}  b4 {[%clk 0:02:11]} 21. axb4 {[%clk 0:02:33]}  axb4 {[%clk 0:02:11]} 22. h3 {[%clk 0:02:31]}  bxc3 {[%clk 0:02:03]} 23. bxc3 {[%clk 0:02:30]}  Na4 {[%clk 0:02:04]} 24. Rc1 {[%clk 0:02:17]}  Rb2 {[%clk 0:01:59]} 25. Qe1 {[%clk 0:02:12]}  Rxf2 {[%clk 0:01:43]} 26. Bxf2 {[%clk 0:02:05]}  Nb6 {[%clk 0:01:40]} 27. Rb1 {[%clk 0:02:02]}  dxe4 {[%clk 0:01:39]} 28. Qxe4 {[%clk 0:02:01]}  Nd5 {[%clk 0:01:40]} 29. Rc1 {[%clk 0:01:59]}  Qa5 {[%clk 0:01:37]} 30. Be1 {[%clk 0:01:49]}  Qa2 {[%clk 0:01:28]} 31. Qb1 {[%clk 0:01:41]}  Ra8 {[%clk 0:01:18]} 32. Qxa2 {[%clk 0:01:27]}  Rxa2 {[%clk 0:01:19]} 33. Bd2 {[%clk 0:01:18]}  Ra3 {[%clk 0:00:50]} 34. Kf1 {[%clk 0:01:13]}  Rb3 {[%clk 0:00:48]} 35. Ke1 {[%clk 0:01:08]}  Ba3 {[%clk 0:00:48]} 36. Rc2 {[%clk 0:01:03]}  Bb2 {[%clk 0:00:46]} 37. Kd1 {[%clk 0:00:57]}  Nxc3+ {[%clk 0:00:41]} 38. Bxc3 {[%clk 0:00:57]}  Bxc3 {[%clk 0:00:40]} 39. Kc1 {[%clk 0:00:48]}  Ra3 {[%clk 0:00:36]} 40. Kd1 {[%clk 0:00:46]}  Bxd4 {[%clk 0:00:35]} 41. Nxd4 {[%clk 0:00:43]}  Rd3+ {[%clk 0:00:35]} 42. Rd2 {[%clk 0:00:43]}  Rxd4 {[%clk 0:00:36]} 43. Rxd4 {[%clk 0:00:42]} 1-0


[Site "https://www.chess.com"]

[Event "Titled Tuesday Blitz March 21 Early 2023"]
[White "Carrasco Miranda, Andres"]
[Black "lluiss"]
[WhiteFideId "3405990"]
[WhiteElo "2183"]
[BlackElo "2154"]
[Result "1-0"]
[Round "03"]
[TimeControl "180+2"]
[Date "2023.03.21"]
[WhiteClock "0:00:24"]
[BlackClock "0:00:04"]

1. d4 {[%clk 0:03:00]}  Nf6 {[%clk 0:02:59]} 2. c4 {[%clk 0:03:01]}  g6 {[%clk 0:02:58]} 3. g3 {[%clk 0:03:01]}  c6 {[%clk 0:02:57]} 4. Bg2 {[%clk 0:03:00]}  d5 {[%clk 0:02:57]} 5. Qa4 {[%clk 0:03:00]}  Bg7 {[%clk 0:02:38]} 6. cxd5 {[%clk 0:02:58]}  Nxd5 {[%clk 0:02:38]} 7. Nf3 {[%clk 0:02:54]}  Nb6 {[%clk 0:02:36]} 8. Qd1 {[%clk 0:02:52]}  O-O {[%clk 0:02:36]} 9. O-O {[%clk 0:02:51]}  Bg4 {[%clk 0:02:36]} 10. e3 {[%clk 0:02:50]}  Qc8 {[%clk 0:02:34]} 11. Nc3 {[%clk 0:02:46]}  Rd8 {[%clk 0:02:32]} 12. Qc2 {[%clk 0:01:59]}  Na6 {[%clk 0:02:28]} 13. a3 {[%clk 0:01:58]}  Bf5 {[%clk 0:02:18]} 14. e4 {[%clk 0:01:52]}  Bg4 {[%clk 0:02:17]} 15. Bg5 {[%clk 0:01:38]}  Kf8 {[%clk 0:01:52]} 16. Ne2 {[%clk 0:01:24]}  h6 {[%clk 0:01:15]} 17. Be3 {[%clk 0:01:23]}  Qe6 {[%clk 0:01:11]} 18. Nf4 {[%clk 0:01:19]}  Qc4 {[%clk 0:01:11]} 19. Qxc4 {[%clk 0:01:17]}  Nxc4 {[%clk 0:01:12]} 20. b3 {[%clk 0:01:09]}  Nxe3 {[%clk 0:01:02]} 21. fxe3 {[%clk 0:01:09]}  Bxf3 {[%clk 0:01:02]} 22. Bxf3 {[%clk 0:01:08]}  e5 {[%clk 0:01:03]} 23. dxe5 {[%clk 0:01:04]}  Bxe5 {[%clk 0:00:58]} 24. Be2 {[%clk 0:01:04]}  Bxa1 {[%clk 0:00:55]} 25. Rxa1 {[%clk 0:01:02]}  Nc5 {[%clk 0:00:55]} 26. e5 {[%clk 0:00:56]}  Nxb3 {[%clk 0:00:50]} 27. Rf1 {[%clk 0:00:52]}  Nc5 {[%clk 0:00:44]} 28. Nxg6+ {[%clk 0:00:48]}  Kg7 {[%clk 0:00:42]} 29. Nh4 {[%clk 0:00:45]}  b5 {[%clk 0:00:20]} 30. Bf3 {[%clk 0:00:37]}  Rac8 {[%clk 0:00:19]} 31. Nf5+ {[%clk 0:00:37]}  Kg6 {[%clk 0:00:18]} 32. Nd6 {[%clk 0:00:35]}  Rc7 {[%clk 0:00:17]} 33. Bd1 {[%clk 0:00:27]}  Ne6 {[%clk 0:00:15]} 34. Bc2+ {[%clk 0:00:27]}  Kg7 {[%clk 0:00:14]} 35. Nf5+ {[%clk 0:00:26]}  Kf8 {[%clk 0:00:12]} 36. Nxh6 {[%clk 0:00:26]}  Rd2 {[%clk 0:00:12]} 37. Bb3 {[%clk 0:00:26]}  Kg7 {[%clk 0:00:08]} 38. Nf5+ {[%clk 0:00:24]}  Kf8 {[%clk 0:00:06]} 39. Nd6 {[%clk 0:00:23]}  Kg7 {[%clk 0:00:06]} 40. Ne8+ {[%clk 0:00:23]}  Kf8 {[%clk 0:00:04]} 41. Nxc7 {[%clk 0:00:24]} 1-0


[Site "https://www.chess.com"]

[Event "Titled Tuesday Blitz March 21 Early 2023"]
[White "Vargas Rodriguez, Wilver"]
[Black "Valle Maytin, Luis Enrique"]
[WhiteFideId "3509672"]
[BlackFideId "3503666"]
[WhiteElo "2238"]
[BlackElo "2225"]
[Result "1-0"]
[Round "03"]
[TimeControl "180+2"]
[Date "2023.03.21"]
[WhiteClock "0:00:14"]
[BlackClock "0:00:09"]

1. e4 {[%clk 0:03:00]}  c6 {[%clk 0:02:31]} 2. Nc3 {[%clk 0:02:40]}  d5 {[%clk 0:02:32]} 3. d3 {[%clk 0:02:40]}  e5 {[%clk 0:02:30]} 4. g3 {[%clk 0:02:36]}  Nf6 {[%clk 0:02:24]} 5. Bg2 {[%clk 0:02:35]}  Bb4 {[%clk 0:02:16]} 6. Bd2 {[%clk 0:02:31]}  O-O {[%clk 0:02:16]} 7. a3 {[%clk 0:02:23]}  Bxc3 {[%clk 0:02:15]} 8. Bxc3 {[%clk 0:02:21]}  d4 {[%clk 0:02:15]} 9. Bd2 {[%clk 0:02:21]}  Bg4 {[%clk 0:02:14]} 10. f3 {[%clk 0:02:21]}  Be6 {[%clk 0:02:14]} 11. Ne2 {[%clk 0:02:16]}  Nfd7 {[%clk 0:02:14]} 12. O-O {[%clk 0:02:14]}  f6 {[%clk 0:02:14]} 13. f4 {[%clk 0:02:14]}  c5 {[%clk 0:02:13]} 14. f5 {[%clk 0:02:11]}  Bf7 {[%clk 0:02:13]} 15. g4 {[%clk 0:02:06]}  Nc6 {[%clk 0:02:13]} 16. Ng3 {[%clk 0:01:42]}  c4 {[%clk 0:02:12]} 17. h4 {[%clk 0:01:40]}  b5 {[%clk 0:02:04]} 18. g5 {[%clk 0:01:38]}  Qb6 {[%clk 0:02:03]} 19. Qg4 {[%clk 0:01:25]}  Be8 {[%clk 0:01:01]} 20. Nh5 {[%clk 0:00:36]}  Bxh5 {[%clk 0:00:27]} 21. Qxh5 {[%clk 0:00:34]}  Nc5 {[%clk 0:00:24]} 22. Rf3 {[%clk 0:00:28]}  Qc7 {[%clk 0:00:15]} 23. Rg3 {[%clk 0:00:27]}  fxg5 {[%clk 0:00:13]} 24. hxg5 {[%clk 0:00:25]}  Rfd8 {[%clk 0:00:09]} 25. g6 {[%clk 0:00:22]}  h6 {[%clk 0:00:08]} 26. Bxh6 {[%clk 0:00:19]}  gxh6 {[%clk 0:00:08]} 27. f6 {[%clk 0:00:20]}  Ne6 {[%clk 0:00:07]} 28. Qxh6 {[%clk 0:00:19]}  Rf8 {[%clk 0:00:05]} 29. f7+ {[%clk 0:00:18]}  Rxf7 {[%clk 0:00:06]} 30. gxf7+ {[%clk 0:00:18]}  Kxf7 {[%clk 0:00:06]} 31. Rf1+ {[%clk 0:00:18]}  Ke8 {[%clk 0:00:06]} 32. Rg8+ {[%clk 0:00:16]}  Kd7 {[%clk 0:00:07]} 33. Rf7+ {[%clk 0:00:15]}  Kd6 {[%clk 0:00:08]} 34. Rxc7 {[%clk 0:00:14]}  Kxc7 {[%clk 0:00:09]} 35. Rxa8 {[%clk 0:00:14]} 1-0


[Site "https://www.chess.com"]

[Event "Titled Tuesday Blitz March 21 Early 2023"]
[White "Kaganskiy, Gleb"]
[Black "Torres Dominguez, David"]
[WhiteFideId "4132025"]
[BlackFideId "2220857"]
[WhiteElo "2165"]
[BlackElo "1999"]
[Result "0-1"]
[Round "03"]
[TimeControl "180+2"]
[Date "2023.03.21"]
[WhiteClock "0:01:11"]
[BlackClock "0:01:16"]

1. d4 {[%clk 0:02:57]}  e5 {[%clk 0:03:00]} 2. dxe5 {[%clk 0:02:56]}  d6 {[%clk 0:03:01]} 3. exd6 {[%clk 0:02:55]}  Bxd6 {[%clk 0:03:01]} 4. Nf3 {[%clk 0:02:55]}  Bg4 {[%clk 0:03:02]} 5. g3 {[%clk 0:02:54]}  Nc6 {[%clk 0:03:03]} 6. Bg2 {[%clk 0:02:54]}  Qd7 {[%clk 0:03:03]} 7. O-O {[%clk 0:02:54]}  O-O-O {[%clk 0:03:03]} 8. Be3 {[%clk 0:02:46]}  h5 {[%clk 0:02:58]} 9. h4 {[%clk 0:02:44]}  f6 {[%clk 0:02:57]} 10. Nc3 {[%clk 0:02:42]}  Qe8 {[%clk 0:02:51]} 11. Nd5 {[%clk 0:02:39]}  Nge7 {[%clk 0:02:31]} 12. c4 {[%clk 0:02:38]}  Kb8 {[%clk 0:02:23]} 13. Qa4 {[%clk 0:02:17]}  Nf5 {[%clk 0:01:33]} 14. Nd4 {[%clk 0:01:50]}  Ncxd4 {[%clk 0:01:31]} 15. Qxe8 {[%clk 0:01:48]}  Nxe2+ {[%clk 0:01:30]} 16. Kh2 {[%clk 0:01:48]}  Rhxe8 {[%clk 0:01:30]} 17. Bf4 {[%clk 0:01:43]}  Nxf4 {[%clk 0:01:29]} 18. Nxf4 {[%clk 0:01:43]}  Bxf4 {[%clk 0:01:28]} 19. gxf4 {[%clk 0:01:43]}  Nd6 {[%clk 0:01:28]} 20. b3 {[%clk 0:01:42]}  Bf5 {[%clk 0:01:28]} 21. Rfe1 {[%clk 0:01:41]}  Be4 {[%clk 0:01:27]} 22. Bxe4 {[%clk 0:01:39]}  Nxe4 {[%clk 0:01:26]} 23. Kg2 {[%clk 0:01:39]}  Nd6 {[%clk 0:01:25]} 24. Rad1 {[%clk 0:01:25]}  Nf5 {[%clk 0:01:25]} 25. Rxe8 {[%clk 0:01:13]}  Rxe8 {[%clk 0:01:25]} 26. Rd7 {[%clk 0:01:14]}  Kc8 {[%clk 0:01:24]} 27. Rf7 {[%clk 0:01:13]}  Nxh4+ {[%clk 0:01:19]} 28. Kh3 {[%clk 0:01:13]}  Nf5 {[%clk 0:01:20]} 29. c5 {[%clk 0:01:11]}  c6 {[%clk 0:01:16]} 0-1


[Site "https://www.chess.com"]

[Event "Titled Tuesday Blitz March 21 Early 2023"]
[White "Escanor89"]
[Black "ilya2700"]
[WhiteElo "2381"]
[BlackElo "2131"]
[Result "1-0"]
[Round "03"]
[TimeControl "180+2"]
[Date "2023.03.21"]
[WhiteClock "0:00:36"]
[BlackClock "0:00:01"]

1. e4 {[%clk 0:03:00]}  c5 {[%clk 0:02:59]} 2. Nf3 {[%clk 0:03:01]}  e6 {[%clk 0:02:59]} 3. g3 {[%clk 0:03:00]}  d5 {[%clk 0:02:59]} 4. exd5 {[%clk 0:03:00]}  exd5 {[%clk 0:03:00]} 5. Bg2 {[%clk 0:03:00]}  Nf6 {[%clk 0:03:01]} 6. O-O {[%clk 0:03:00]}  Nc6 {[%clk 0:03:01]} 7. d4 {[%clk 0:02:59]}  Be7 {[%clk 0:03:01]} 8. dxc5 {[%clk 0:02:58]}  Bxc5 {[%clk 0:03:02]} 9. Nc3 {[%clk 0:02:55]}  Be6 {[%clk 0:03:02]} 10. Bg5 {[%clk 0:02:54]}  O-O {[%clk 0:03:01]} 11. a3 {[%clk 0:02:48]}  a5 {[%clk 0:02:54]} 12. Re1 {[%clk 0:02:44]}  Rc8 {[%clk 0:02:05]} 13. Qd2 {[%clk 0:02:40]}  h6 {[%clk 0:02:00]} 14. Bf4 {[%clk 0:02:25]}  Ng4 {[%clk 0:01:50]} 15. Re2 {[%clk 0:02:15]}  g5 {[%clk 0:01:33]} 16. Be5 {[%clk 0:01:41]}  Ncxe5 {[%clk 0:01:32]} 17. Nxe5 {[%clk 0:01:41]}  Bxf2+ {[%clk 0:01:28]} 18. Rxf2 {[%clk 0:01:38]}  Nxe5 {[%clk 0:01:28]} 19. Nxd5 {[%clk 0:01:35]}  Ng4 {[%clk 0:01:16]} 20. Re2 {[%clk 0:01:27]}  Bxd5 {[%clk 0:00:46]} 21. Bxd5 {[%clk 0:01:20]}  Qb6+ {[%clk 0:00:45]} 22. Kg2 {[%clk 0:01:16]}  Qxb2 {[%clk 0:00:29]} 23. Rf1 {[%clk 0:01:14]}  Qxa3 {[%clk 0:00:17]} 24. h3 {[%clk 0:00:48]}  Rcd8 {[%clk 0:00:06]} 25. hxg4 {[%clk 0:00:46]}  Qc5 {[%clk 0:00:06]} 26. Rf5 {[%clk 0:00:45]}  Qd6 {[%clk 0:00:04]} 27. c4 {[%clk 0:00:43]}  b5 {[%clk 0:00:03]} 28. cxb5 {[%clk 0:00:42]}  a4 {[%clk 0:00:03]} 29. Qa2 {[%clk 0:00:39]}  a3 {[%clk 0:00:03]} 30. Rd2 {[%clk 0:00:37]}  Kg7 {[%clk 0:00:02]} 31. Rd3 {[%clk 0:00:37]}  f6 {[%clk 0:00:02]} 32. Qxa3 {[%clk 0:00:36]}  Qe5 {[%clk 0:00:01]} 33. Rxe5 {[%clk 0:00:36]} 1-0


[Site "https://www.chess.com"]

[Event "Titled Tuesday Blitz March 21 Early 2023"]
[White "Aung Thant Zin"]
[Black "ArtemDyachuk"]
[WhiteFideId "13000063"]
[WhiteElo "2278"]
[BlackElo "2373"]
[Result "0-1"]
[Round "03"]
[TimeControl "180+2"]
[Date "2023.03.21"]
[WhiteClock "0:00:03"]
[BlackClock "0:01:07"]

1. e4 {[%clk 0:01:15]}  c5 {[%clk 0:02:57]} 2. Nf3 {[%clk 0:01:15]}  d6 {[%clk 0:02:56]} 3. Bb5+ {[%clk 0:01:15]}  Nd7 {[%clk 0:02:56]} 4. Bxd7+ {[%clk 0:01:15]}  Bxd7 {[%clk 0:02:55]} 5. O-O {[%clk 0:01:16]}  Nf6 {[%clk 0:02:55]} 6. Re1 {[%clk 0:01:14]}  e5 {[%clk 0:02:55]} 7. c3 {[%clk 0:01:15]}  Bc6 {[%clk 0:02:54]} 8. d4 {[%clk 0:01:14]}  Be7 {[%clk 0:02:44]} 9. Nbd2 {[%clk 0:01:05]}  cxd4 {[%clk 0:02:36]} 10. cxd4 {[%clk 0:01:04]}  exd4 {[%clk 0:02:37]} 11. Nxd4 {[%clk 0:01:04]}  Bd7 {[%clk 0:02:37]} 12. Qb3 {[%clk 0:01:02]}  O-O {[%clk 0:02:32]} 13. N2f3 {[%clk 0:00:53]}  Ng4 {[%clk 0:02:07]} 14. Bf4 {[%clk 0:00:47]}  b5 {[%clk 0:01:51]} 15. Rad1 {[%clk 0:00:46]}  Qb6 {[%clk 0:01:48]} 16. h3 {[%clk 0:00:43]}  Nf6 {[%clk 0:01:47]} 17. Nf5 {[%clk 0:00:36]}  Bxf5 {[%clk 0:01:45]} 18. exf5 {[%clk 0:00:37]}  Rfe8 {[%clk 0:01:39]} 19. Nd4 {[%clk 0:00:34]}  a6 {[%clk 0:01:32]} 20. g4 {[%clk 0:00:32]}  d5 {[%clk 0:01:31]} 21. g5 {[%clk 0:00:31]}  Nh5 {[%clk 0:01:29]} 22. Be3 {[%clk 0:00:29]}  Bc5 {[%clk 0:01:28]} 23. Qxd5 {[%clk 0:00:21]}  Rad8 {[%clk 0:01:28]} 24. Qf3 {[%clk 0:00:20]}  g6 {[%clk 0:01:25]} 25. Nc2 {[%clk 0:00:13]}  Qc7 {[%clk 0:01:15]} 26. Rxd8 {[%clk 0:00:10]}  Rxd8 {[%clk 0:01:16]} 27. Bxc5 {[%clk 0:00:10]}  Qxc5 {[%clk 0:01:16]} 28. Ne3 {[%clk 0:00:11]}  Ng7 {[%clk 0:01:13]} 29. f6 {[%clk 0:00:09]}  Qxg5+ {[%clk 0:01:12]} 30. Ng4 {[%clk 0:00:09]}  Nf5 {[%clk 0:01:09]} 31. Qg2 {[%clk 0:00:07]}  Nh4 {[%clk 0:01:07]} 32. Qg3 {[%clk 0:00:03]}  h5 {[%clk 0:01:07]} 0-1


[Site "https://www.chess.com"]